{"text_format":"1","workbook":"xlsx","n_sheets":8,"sheets":["送金内訳表","参加選手名簿 ","混合ダブルス","男子ダブルス","女子ダブルス","男子シングルス","女子シングルス","Sheet1"],"not_rendered":{"charts":0,"images":0,"macros":0,"external_links":0,"defined_names":11,"comments":2,"pivot_tables":0},"unopened":[],"bounds":{"document_bytes":16777216,"sheet_cells":100000,"rows_first":2000,"rows_last":500,"rows_between":2000,"halvings":0,"cell_chars":16384,"cell_head_chars":4096},"cells_cut":0,"cells_raw":0,"read":"whole","date_system":"1900"}

{"sheet":"送金内訳表","index":0,"n_rows":63,"n_cols":12,"rows_kept":63,"cut":false,"hidden":false,"merged":[[1,2,1,10],[5,1,5,2],[5,3,5,4],[5,5,5,6],[58,6,58,7],[61,3,61,10],[62,4,62,7],[62,8,62,10],[6,1,25,1],[27,1,46,1],[48,1,57,1],[12,10,14,10],[22,10,24,10],[33,10,35,10],[43,10,45,10],[54,10,56,10]]}
[null,null,"(一社)茨城県卓球連盟 御中　 "]
[null,null," 第１９回　関東ラージボール卓球大会　送金内訳表"]
[null,"【　送　金　内　訳　】",null,null,null,null,"申込団体名　　　："]
[null,null,null,null,null,null,"申込責任者　　　："]
[null,null,null,null,null,null,"連絡先電話番号："]
[null,"種目名",null,"参加料",null,"人数計",null,null,"　金額"]
[null,"　　　シ　　ン　　グ　　ル　　ス","①男子　一般",2000,"×",null,"名","＝",{"$f":"++D7*F7","v":0},"　　円"]
[null,null,"②男子　40",2000,"×",null,"名","＝",{"$f":"+D8*F8","v":0},"　　円"]
[null,null,"③男子　50",2000,"×",null,"名","＝",{"$f":"+D9*F9","v":0},"　　円"]
[null,null,"④男子　60",2000,"×",null,"名","＝",0,"　　円"]
[null,null,"⑤男子　65",2000,"×",null,"名","＝",0,"　　円"]
[null,null,"⑥男子　70",2000,"×",null,"名","＝",0,"　　円"]
[null,null,"⑦男子　75",2000,"×",null,"名","＝",0,"　　円","男子　①～⑩"]
[null,null,"⑧男子　80",2000,"×",null,"名","＝",0,"　　円"]
[null,null,"⑨男子　85",2000,"×",null,"名","＝",0,"　　円"]
[null,null,"⑩男子　90",2000,"×",null,"名","＝",0,"　　円",{"$f":"SUM(I7:I16)","v":0},"　計"]
[null,null,"①女子　一般",2000,"×",null,"名","＝",0,"　　円"]
[null,null,"②女子　40",2000,"×",null,"名","＝",0,"　　円"]
[null,null,"③女子　50",2000,"×",null,"名","＝",0,"　　円"]
[null,null,"④女子　60",2000,"×",null,"名","＝",0,"　　円"]
[null,null,"⑤女子　65",2000,"×",null,"名","＝",0,"　　円"]
[null,null,"⑥女子　70",2000,"×",null,"名","＝",0,"　　円"]
[null,null,"⑦女子　75",2000,"×",null,"名","＝",0,"　　円","女子　①～⑩"]
[null,null,"⑧女子　80",2000,"×",null,"名","＝",0,"　　円"]
[null,null,"⑨女子　85",2000,"×",null,"名","＝",0,"　　円"]
[null,null,"⑩女子　90",2000,"×",null,"名","＝",0,"　　円",{"$f":"SUM(I17:I26)","v":0},"　計"]
[]
[null,"ダブルス","①男子　一般",3000,"×",null,"組","＝",{"$f":"+D28*F28","v":0},"　　円"]
[null,null,"②男子　 80",3000,"×",null,"組","＝",{"$f":"+D29*F29","v":0},"　　円"]
[null,null,"③男子　100",3000,"×",null,"組","＝",{"$f":"+D30*F30","v":0},"　　円"]
[null,null,"④男子　120",3000,"×",null,"組","＝",0,"　　円"]
[null,null,"⑤男子　130",3000,"×",null,"組","＝",0,"　　円"]
[null,null,"⑥男子　140",3000,"×",null,"組","＝",0,"　　円"]
[null,null,"⑦男子　150",3000,"×",null,"組","＝",0,"　　円","男子　①～⑩"]
[null,null,"⑧男子　160",3000,"×",null,"組","＝",0,"　　円"]
[null,null,"⑨男子　170",3000,"×",null,"組","＝",0,"　　円"]
[null,null,"⑩男子　180　",3000,"×",null,"組","＝",0,"　　円",{"$f":"SUM(I28:I37)","v":0},"　計"]
[null,null,"①女子　一般",3000,"×",null,"組","＝",0,"　　円"]
[null,null,"②女子　 80",3000,"×",null,"組","＝",0,"　　円"]
[null,null,"③女子　100",3000,"×",null,"組","＝",0,"　　円"]
[null,null,"④女子　120",3000,"×",null,"組","＝",0,"　　円"]
[null,null,"⑤女子　130",3000,"×",null,"組","＝",0,"　　円"]
[null,null,"⑥女子　140",3000,"×",null,"組","＝",0,"　　円"]
[null,null,"⑦女子　150",3000,"×",null,"組","＝",0,"　　円","女子　①～⑩"]
[null,null,"⑧女子　160",3000,"×",null,"組","＝",0,"　　円"]
[null,null,"⑨女子　170",3000,"×",null,"組","＝",0,"　　円"]
[null,null,"⑩女子　180　",3000,"×",null,"組","＝",0,"　　円",{"$f":"SUM(I38:I47)","v":0},"　計"]
[]
[null,"混合ダブルス","①混合　一般",3000,"×",null,"組","＝",{"$f":"+D49*F49","v":0},"　　円"]
[null,null,"②混合　 80",3000,"×",null,"組","＝",{"$f":"+D50*F50","v":0},"　　円"]
[null,null,"③混合　100",3000,"×",null,"組","＝",{"$f":"+D51*F51","v":0},"　　円"]
[null,null,"④混合　120",3000,"×",null,"組","＝",0,"　　円"]
[null,null,"⑤混合　130",3000,"×",null,"組","＝",0,"　　円"]
[null,null,"⑥混合　140",3000,"×",null,"組","＝",0,"　　円"]
[null,null,"⑦混合　150",3000,"×",null,"組","＝",0,"　　円","混合　①～⑩"]
[null,null,"⑧混合　160",3000,"×",null,"組","＝",0,"　　円"]
[null,null,"⑨混合　170",3000,"×",null,"組","＝",0,"　　円"]
[null,null,"⑩混合　180　",3000,"×",null,"組","＝",0,"　　円",{"$f":"SUM(I49:I58)","v":0},"　計"]
[null,null,null,null,null,null,"総合計",null,{"$f":"SUM(I7:I58)","v":0},"　　円"]
[]
[null,null,"　　上記金額を",null,"月",null,"日",null,"【　担当　：",null,"】"]
[null,null,"　　振込先　　　"]
[null,null,null,"口座番号","普通",null,null,null,"に 　　月   　　日振り込みました。"]

{"sheet":"参加選手名簿 ","index":1,"n_rows":79,"n_cols":10,"rows_kept":79,"cut":false,"hidden":false,"merged":[[1,1,1,9],[6,5,6,9],[6,1,7,1],[8,1,11,1],[6,2,7,2],[6,3,7,3],[6,4,7,4]]}
[null,"（一社）茨城県卓球連盟　御中"]
[null,"第19回 関東ラージボール卓球大会 参加選手名簿"]
[]
[null,null,null,null,null,"申込団体名　　　："]
[null,null,null,null,null,"申込責任者　　　："]
[null,null,null,null,null,"連絡先電話番号　："]
[null,"No.","性別","選手名","日本卓球協会\n登録チーム名","参加種目"]
[null,null,null,null,null,"男子　　　　シングルス","女子　　　　シングルス","男子　　　　ダブルス","女子　　　　ダブルス","混合　　　　ダブルス"]
[null,"例","男","群馬　太郎","利根川クラブ",50,50,150,150,150]
[null,null,"男","赤城　春雄","利根川クラブ",50,50,150,150,150]
[null,null,"女","前橋　花子","利根川クラブ",50,50,150,150,150]
[null,null,"女","坂東　はなこ","利根川クラブ",50,50,150,150,150]
[null,1]
[null,2]
[null,3]
[null,4]
[null,5]
[null,6]
[null,7]
[null,8]
[null,9]
[null,10]
[null,11]
[null,12]
[null,13]
[null,14]
[null,15]
[null,16]
[null,17]
[null,18]
[null,19]
[null,20]
[null,21]
[null,22]
[null,23]
[null,24]
[null,25]
[null,26]
[null,27]
[null,28]
[null,29]
[null,30]
[null,31]
[null,32]
[null,33]
[null,34]
[null,35]
[null,36]
[null,37]
[null,38]
[null,39]
[null,40]
[null,41]
[null,42]
[null,43]
[null,44]
[null,45]
[null,46]
[null,47]
[null,48]
[null,49]
[null,50]
[null,51]
[null,52]
[null,53]
[null,54]
[null,55]
[null,56]
[null,57]
[null,58]
[null,59]
[null,60]
[null,61]
[null,62]
[null,63]
[null,64]
[null,65]
[null,66]
[null,67]

{"sheet":"混合ダブルス","index":2,"n_rows":52,"n_cols":12,"rows_kept":52,"cut":false,"hidden":false,"merged":[[0,0,0,11],[1,0,1,11],[3,8,3,11],[4,8,4,11],[5,8,5,11],[6,10,6,11],[8,0,11,0],[8,1,9,1],[10,1,11,1],[12,1,13,1],[14,1,15,1],[16,1,17,1],[18,1,19,1],[20,1,21,1],[22,1,23,1],[24,1,25,1],[26,1,27,1],[28,1,29,1],[30,1,31,1],[32,1,33,1],[34,1,35,1],[36,1,37,1],[38,1,39,1],[40,1,41,1],[42,1,43,1],[44,1,45,1],[46,1,47,1],[48,1,49,1],[50,1,51,1]]}
["第１９回 関東ラージボール卓球大会"]
["混合ダブルス参加申込書"]
[]
[null,null,null,null,null,null,null,"申込団体名"]
[null,null,null,null,null,null,null,"申込責任者"]
[null,null,null,null,null,null,null,"連絡先電話番号"]
[null,"〈記入上のお願い〉：ダブルスはパートナーを1－1，1－3のように記入してください。　　　年齢は、自動計算されます",null,null,null,null,null,null,null,null,"年齢基準：２０２７年４月１日"]
[null,"No.","種目","No.","選手名","ふりがな","日本卓球協会\n登録チーム名","ふりがな","生年月日","年齢","計","備考"]
["例",1,"混合150","1－1","神奈川 太郎","かながわたろう","小田原クラブ","おだわらくらぶ","1946-05-15",{"$f":"IF(I9<>\"\",DATEDIF(I9,\"2027/4/1\",\"Y\"),\"\")","v":80}]
[null,null,"混合150","1－2","横浜　花子","よこはまはなこ","小田原クラブ","おだわらくらぶ","1945-08-06",81,{"$f":"+J9+J10","v":161}]
[null,2,"混合150","2－1","川崎　俊夫","かわさきとしお","小田原クラブ","おだわらくらぶ","1947-06-01",79]
[null,null,"混合150","2－2","相模　春子","さがみはるこ","小田原クラブ","おだわらくらぶ","1947-11-09",79,{"$f":"+J11+J12","v":158}]
[null,1,null,null,null,null,null,null,null,""]
[null,null,null,null,null,null,null,null,null,"",{"$f":"+J13+J14","v":{"$error":"#VALUE!"}}]
[null,2,null,null,null,null,null,null,null,""]
[null,null,null,null,null,null,null,null,null,"",{"$f":"+J15+J16","v":{"$error":"#VALUE!"}}]
[null,3,null,null,null,null,null,null,null,""]
[null,null,null,null,null,null,null,null,null,"",{"$f":"+J17+J18","v":{"$error":"#VALUE!"}}]
[null,4,null,null,null,null,null,null,null,""]
[null,null,null,null,null,null,null,null,null,"",{"$f":"+J19+J20","v":{"$error":"#VALUE!"}}]
[null,5,null,null,null,null,null,null,null,""]
[null,null,null,null,null,null,null,null,null,"",{"$f":"+J21+J22","v":{"$error":"#VALUE!"}}]
[null,6,null,null,null,null,null,null,null,""]
[null,null,null,null,null,null,null,null,null,"",{"$f":"+J23+J24","v":{"$error":"#VALUE!"}}]
[null,7,null,null,null,null,null,null,null,""]
[null,null,null,null,null,null,null,null,null,"",{"$f":"+J25+J26","v":{"$error":"#VALUE!"}}]
[null,8,null,null,null,null,null,null,null,""]
[null,null,null,null,null,null,null,null,null,"",{"$f":"+J27+J28","v":{"$error":"#VALUE!"}}]
[null,9,null,null,null,null,null,null,null,""]
[null,null,null,null,null,null,null,null,null,"",{"$f":"+J29+J30","v":{"$error":"#VALUE!"}}]
[null,10,null,null,null,null,null,null,null,""]
[null,null,null,null,null,null,null,null,null,"",{"$f":"+J31+J32","v":{"$error":"#VALUE!"}}]
[null,11,null,null,null,null,null,null,null,""]
[null,null,null,null,null,null,null,null,null,"",{"$f":"+J33+J34","v":{"$error":"#VALUE!"}}]
[null,12,null,null,null,null,null,null,null,""]
[null,null,null,null,null,null,null,null,null,"",{"$f":"+J35+J36","v":{"$error":"#VALUE!"}}]
[null,13,null,null,null,null,null,null,null,""]
[null,null,null,null,null,null,null,null,null,"",{"$f":"+J37+J38","v":{"$error":"#VALUE!"}}]
[null,14,null,null,null,null,null,null,null,""]
[null,null,null,null,null,null,null,null,null,"",{"$f":"+J39+J40","v":{"$error":"#VALUE!"}}]
[null,15,null,null,null,null,null,null,null,""]
[null,null,null,null,null,null,null,null,null,"",{"$f":"+J41+J42","v":{"$error":"#VALUE!"}}]
[null,16,null,null,null,null,null,null,null,""]
[null,null,null,null,null,null,null,null,null,"",{"$f":"+J43+J44","v":{"$error":"#VALUE!"}}]
[null,17,null,null,null,null,null,null,null,""]
[null,null,null,null,null,null,null,null,null,"",{"$f":"+J45+J46","v":{"$error":"#VALUE!"}}]
[null,18,null,null,null,null,null,null,null,""]
[null,null,null,null,null,null,null,null,null,"",{"$f":"+J47+J48","v":{"$error":"#VALUE!"}}]
[null,19,null,null,null,null,null,null,null,""]
[null,null,null,null,null,null,null,null,null,"",{"$f":"+J49+J50","v":{"$error":"#VALUE!"}}]
[null,20,null,null,null,null,null,null,null,""]
[null,null,null,null,null,null,null,null,null,"",{"$f":"+J51+J52","v":{"$error":"#VALUE!"}}]

{"sheet":"男子ダブルス","index":3,"n_rows":52,"n_cols":12,"rows_kept":52,"cut":false,"hidden":false,"merged":[[0,0,0,11],[1,0,1,11],[3,8,3,11],[4,8,4,11],[5,8,5,11],[6,10,6,11],[8,0,11,0],[8,1,9,1],[10,1,11,1],[12,1,13,1],[14,1,15,1],[16,1,17,1],[18,1,19,1],[20,1,21,1],[22,1,23,1],[24,1,25,1],[26,1,27,1],[28,1,29,1],[30,1,31,1],[32,1,33,1],[34,1,35,1],[36,1,37,1],[38,1,39,1],[40,1,41,1],[42,1,43,1],[44,1,45,1],[46,1,47,1],[48,1,49,1],[50,1,51,1]]}
["第１９回 関東ラージボール卓球大会"]
["男子ダブルス参加申込書"]
[]
[null,null,null,null,null,null,null,"申込団体名"]
[null,null,null,null,null,null,null,"申込責任者"]
[null,null,null,null,null,null,null,"連絡先電話番号"]
[null,"〈記入上のお願い〉：ダブルスはパートナーを1－1，1－3のように記入してください。　年齢は、自動計算されます",null,null,null,null,null,null,null,null,"年齢基準：２０２７年４月１日"]
[null,"No.","種目","No.","選手名","ふりがな","日本卓球協会\n登録チーム名","ふりがな","生年月日","年齢","計","備考"]
["例",1,"男子150","1－1","神奈川 太郎","かながわたろう","小田原クラブ","おだわらくらぶ","1946-05-15",{"$f":"IF(I9<>\"\",DATEDIF(I9,\"2027/4/1\",\"Y\"),\"\")","v":80}]
[null,null,"男子150","1－2","松田 利雄","まつだとしお","小田原クラブ","おだわらくらぶ","1946-01-04",81,{"$f":"+J9+J10","v":161}]
[null,2,"男子150","2－1","川崎 俊夫","かわさきとしお","小田原クラブ","おだわらくらぶ","1948-06-01",78]
[null,null,"男子150","2－2","箱根 光夫","はこねみつお","小田原クラブ","おだわらくらぶ","1945-08-06",81,{"$f":"+J11+J12","v":159}]
[null,1,null,null,null,null,null,null,null,""]
[null,null,null,null,null,null,null,null,null,"",{"$f":"+J13+J14","v":{"$error":"#VALUE!"}}]
[null,2,null,null,null,null,null,null,null,{"$f":"IF(I15<>\"\",DATEDIF(I15,\"2027/4/1\",\"Y\"),\"\")","v":""}]
[null,null,null,null,null,null,null,null,null,"",{"$f":"+J15+J16","v":{"$error":"#VALUE!"}}]
[null,3,null,null,null,null,null,null,null,""]
[null,null,null,null,null,null,null,null,null,"",{"$f":"+J17+J18","v":{"$error":"#VALUE!"}}]
[null,4,null,null,null,null,null,null,null,""]
[null,null,null,null,null,null,null,null,null,"",{"$f":"+J19+J20","v":{"$error":"#VALUE!"}}]
[null,5,null,null,null,null,null,null,null,""]
[null,null,null,null,null,null,null,null,null,"",{"$f":"+J21+J22","v":{"$error":"#VALUE!"}}]
[null,6,null,null,null,null,null,null,null,""]
[null,null,null,null,null,null,null,null,null,"",{"$f":"+J23+J24","v":{"$error":"#VALUE!"}}]
[null,7,null,null,null,null,null,null,null,""]
[null,null,null,null,null,null,null,null,null,"",{"$f":"+J25+J26","v":{"$error":"#VALUE!"}}]
[null,8,null,null,null,null,null,null,null,""]
[null,null,null,null,null,null,null,null,null,"",{"$f":"+J27+J28","v":{"$error":"#VALUE!"}}]
[null,9,null,null,null,null,null,null,null,""]
[null,null,null,null,null,null,null,null,null,"",{"$f":"+J29+J30","v":{"$error":"#VALUE!"}}]
[null,10,null,null,null,null,null,null,null,""]
[null,null,null,null,null,null,null,null,null,"",{"$f":"+J31+J32","v":{"$error":"#VALUE!"}}]
[null,11,null,null,null,null,null,null,null,""]
[null,null,null,null,null,null,null,null,null,"",{"$f":"+J33+J34","v":{"$error":"#VALUE!"}}]
[null,12,null,null,null,null,null,null,null,""]
[null,null,null,null,null,null,null,null,null,"",{"$f":"+J35+J36","v":{"$error":"#VALUE!"}}]
[null,13,null,null,null,null,null,null,null,""]
[null,null,null,null,null,null,null,null,null,"",{"$f":"+J37+J38","v":{"$error":"#VALUE!"}}]
[null,14,null,null,null,null,null,null,null,""]
[null,null,null,null,null,null,null,null,null,"",{"$f":"+J39+J40","v":{"$error":"#VALUE!"}}]
[null,15,null,null,null,null,null,null,null,""]
[null,null,null,null,null,null,null,null,null,"",{"$f":"+J41+J42","v":{"$error":"#VALUE!"}}]
[null,16,null,null,null,null,null,null,null,""]
[null,null,null,null,null,null,null,null,null,"",{"$f":"+J43+J44","v":{"$error":"#VALUE!"}}]
[null,17,null,null,null,null,null,null,null,""]
[null,null,null,null,null,null,null,null,null,"",{"$f":"+J45+J46","v":{"$error":"#VALUE!"}}]
[null,18,null,null,null,null,null,null,null,""]
[null,null,null,null,null,null,null,null,null,"",{"$f":"+J47+J48","v":{"$error":"#VALUE!"}}]
[null,19,null,null,null,null,null,null,null,""]
[null,null,null,null,null,null,null,null,null,"",{"$f":"+J49+J50","v":{"$error":"#VALUE!"}}]
[null,20,null,null,null,null,null,null,null,""]
[null,null,null,null,null,null,null,null,null,"",{"$f":"+J51+J52","v":{"$error":"#VALUE!"}}]

{"sheet":"女子ダブルス","index":4,"n_rows":52,"n_cols":12,"rows_kept":52,"cut":false,"hidden":false,"merged":[[0,0,0,11],[1,0,1,11],[3,8,3,11],[4,8,4,11],[5,8,5,11],[6,10,6,11],[8,0,11,0],[8,1,9,1],[10,1,11,1],[12,1,13,1],[14,1,15,1],[16,1,17,1],[18,1,19,1],[20,1,21,1],[22,1,23,1],[24,1,25,1],[26,1,27,1],[28,1,29,1],[30,1,31,1],[32,1,33,1],[34,1,35,1],[36,1,37,1],[38,1,39,1],[40,1,41,1],[42,1,43,1],[44,1,45,1],[46,1,47,1],[48,1,49,1],[50,1,51,1]]}
["第１９回 関東ラージボール卓球大会"]
["女子ダブルス参加申込書"]
[]
[null,null,null,null,null,null,null,"申込団体名"]
[null,null,null,null,null,null,null,"申込責任者"]
[null,null,null,null,null,null,null,"連絡先電話番号"]
[null,"〈記入上のお願い〉：ダブルスはパートナーを1－1，1－3のように記入してください。　年齢は自動計算されます",null,null,null,null,null,null,null,null,"年齢基準：２０２７年４月１日"]
[null,"No.","種目","No.","選手名","ふりがな","日本卓球協会\n登録チーム名","ふりがな","生年月日","年齢","計","備考"]
["例",1,"女子150","1－1","横浜　花子","よこはまはなこ","小田原クラブ","おだわらくらぶ","1945-08-06",{"$f":"IF(I9<>\"\",DATEDIF(I9,\"2027/4/1\",\"Y\"),\"\")","v":81}]
[null,null,"女子150","1－2","相模　春子","さがみはるこ","小田原クラブ","おだわらくらぶ","1947-11-09",79,{"$f":"+J9+J10","v":160}]
[null,2,"女子150","2－1","大谷　芳子","おだわらよしこ","小田原クラブ","おだわらくらぶ","1948-06-01",78]
[null,null,"女子150","2－2","加藤　道子","かとうみちこ","小田原クラブ","おだわらくらぶ","1945-07-06",81,{"$f":"+J11+J12","v":159}]
[null,1,null,null,null,null,null,null,null,""]
[null,null,null,null,null,null,null,null,null,"",{"$f":"+J13+J14","v":{"$error":"#VALUE!"}}]
[null,2,null,null,null,null,null,null,null,""]
[null,null,null,null,null,null,null,null,null,"",{"$f":"+J15+J16","v":{"$error":"#VALUE!"}}]
[null,3,null,null,null,null,null,null,null,""]
[null,null,null,null,null,null,null,null,null,"",{"$f":"+J17+J18","v":{"$error":"#VALUE!"}}]
[null,4,null,null,null,null,null,null,null,""]
[null,null,null,null,null,null,null,null,null,"",{"$f":"+J19+J20","v":{"$error":"#VALUE!"}}]
[null,5,null,null,null,null,null,null,null,""]
[null,null,null,null,null,null,null,null,null,"",{"$f":"+J21+J22","v":{"$error":"#VALUE!"}}]
[null,6,null,null,null,null,null,null,null,""]
[null,null,null,null,null,null,null,null,null,"",{"$f":"+J23+J24","v":{"$error":"#VALUE!"}}]
[null,7,null,null,null,null,null,null,null,""]
[null,null,null,null,null,null,null,null,null,"",{"$f":"+J25+J26","v":{"$error":"#VALUE!"}}]
[null,8,null,null,null,null,null,null,null,""]
[null,null,null,null,null,null,null,null,null,"",{"$f":"+J27+J28","v":{"$error":"#VALUE!"}}]
[null,9,null,null,null,null,null,null,null,""]
[null,null,null,null,null,null,null,null,null,"",{"$f":"+J29+J30","v":{"$error":"#VALUE!"}}]
[null,10,null,null,null,null,null,null,null,""]
[null,null,null,null,null,null,null,null,null,"",{"$f":"+J31+J32","v":{"$error":"#VALUE!"}}]
[null,11,null,null,null,null,null,null,null,""]
[null,null,null,null,null,null,null,null,null,"",{"$f":"+J33+J34","v":{"$error":"#VALUE!"}}]
[null,12,null,null,null,null,null,null,null,""]
[null,null,null,null,null,null,null,null,null,"",{"$f":"+J35+J36","v":{"$error":"#VALUE!"}}]
[null,13,null,null,null,null,null,null,null,""]
[null,null,null,null,null,null,null,null,null,"",{"$f":"+J37+J38","v":{"$error":"#VALUE!"}}]
[null,14,null,null,null,null,null,null,null,""]
[null,null,null,null,null,null,null,null,null,"",{"$f":"+J39+J40","v":{"$error":"#VALUE!"}}]
[null,15,null,null,null,null,null,null,null,""]
[null,null,null,null,null,null,null,null,null,"",{"$f":"+J41+J42","v":{"$error":"#VALUE!"}}]
[null,16,null,null,null,null,null,null,null,""]
[null,null,null,null,null,null,null,null,null,"",{"$f":"+J43+J44","v":{"$error":"#VALUE!"}}]
[null,17,null,null,null,null,null,null,null,{"$f":"IF(I45<>\"\",DATEDIF(I45,\"2027/4/1\",\"Y\"),\"\")","v":""}]
[null,null,null,null,null,null,null,null,null,"",{"$f":"+J45+J46","v":{"$error":"#VALUE!"}}]
[null,18,null,null,null,null,null,null,null,""]
[null,null,null,null,null,null,null,null,null,"",{"$f":"+J47+J48","v":{"$error":"#VALUE!"}}]
[null,19,null,null,null,null,null,null,null,""]
[null,null,null,null,null,null,null,null,null,"",{"$f":"+J49+J50","v":{"$error":"#VALUE!"}}]
[null,20,null,null,null,null,null,null,null,""]
[null,null,null,null,null,null,null,null,null,"",{"$f":"+J51+J52","v":{"$error":"#VALUE!"}}]

{"sheet":"男子シングルス","index":5,"n_rows":60,"n_cols":11,"rows_kept":60,"cut":false,"hidden":false,"merged":[[0,0,0,10],[1,0,1,10],[3,8,3,10],[4,8,4,10],[5,8,5,10],[6,9,6,10],[8,0,9,0]]}
["第１９回 関東ラージボール卓球大会"]
["男子シングルス申込書  （凡例 M:男子）"]
[]
[null,null,null,null,null,null,null,"申込団体名"]
[null,null,null,null,null,null,null,"申込責任者"]
[null,null,null,null,null,null,null,"連絡先電話番号"]
[null,null,null,null,null,null,"年齢は、自動計算されます",null,null,"年齢基準：２０２７年４月１日"]
[null,"No.","性別","選手名","ふりがな","日本卓球協会\n登録チーム名","ふりがな","生年月日","年齢","種目","備考"]
["例",1,"男子","神奈川 太郎","かながわたろう","小田原クラブ","おだわらくらぶ","1946-05-15",{"$f":"IF(H9<>\"\",DATEDIF(H9,\"2027/4/1\",\"Y\"),\"\")","v":80},"７５M","前年度3位"]
[null,2,"男子","川崎 俊夫","かわさきとしお","小田原クラブ","おだわらくらぶ","1947-06-01",{"$f":"IF(H10<>\"\",DATEDIF(H10,\"2027/4/1\",\"Y\"),\"\")","v":79},"７５M"]
[null,1,"男子",null,null,null,null,null,{"$f":"IF(H11<>\"\",DATEDIF(H11,\"2027/4/1\",\"Y\"),\"\")","v":""}]
[null,2,"男子",null,null,null,null,null,{"$f":"IF(H12<>\"\",DATEDIF(H12,\"2027/4/1\",\"Y\"),\"\")","v":""}]
[null,3,"男子",null,null,null,null,null,""]
[null,4,"男子",null,null,null,null,null,""]
[null,5,"男子",null,null,null,null,null,""]
[null,6,"男子",null,null,null,null,null,""]
[null,7,"男子",null,null,null,null,null,""]
[null,8,"男子",null,null,null,null,null,""]
[null,9,"男子",null,null,null,null,null,""]
[null,10,"男子",null,null,null,null,null,""]
[null,11,"男子",null,null,null,null,null,""]
[null,12,"男子",null,null,null,null,null,""]
[null,13,"男子",null,null,null,null,null,""]
[null,14,"男子",null,null,null,null,null,""]
[null,15,"男子",null,null,null,null,null,""]
[null,16,"男子",null,null,null,null,null,""]
[null,17,"男子",null,null,null,null,null,""]
[null,18,"男子",null,null,null,null,null,""]
[null,19,"男子",null,null,null,null,null,""]
[null,20,"男子",null,null,null,null,null,""]
[null,21,"男子",null,null,null,null,null,""]
[null,22,"男子",null,null,null,null,null,""]
[null,23,"男子",null,null,null,null,null,""]
[null,24,"男子",null,null,null,null,null,""]
[null,25,"男子",null,null,null,null,null,""]
[null,26,"男子",null,null,null,null,null,""]
[null,27,"男子",null,null,null,null,null,""]
[null,28,"男子",null,null,null,null,null,""]
[null,29,"男子",null,null,null,null,null,""]
[null,30,"男子",null,null,null,null,null,""]
[null,31,"男子",null,null,null,null,null,""]
[null,32,"男子",null,null,null,null,null,""]
[null,33,"男子",null,null,null,null,null,""]
[null,34,"男子",null,null,null,null,null,{"$f":"IF(H44<>\"\",DATEDIF(H44,\"2027/4/1\",\"Y\"),\"\")","v":""}]
[null,35,"男子",null,null,null,null,null,""]
[null,36,"男子",null,null,null,null,null,""]
[null,37,"男子",null,null,null,null,null,""]
[null,38,"男子",null,null,null,null,null,""]
[null,39,"男子",null,null,null,null,null,""]
[null,40,"男子",null,null,null,null,null,""]
[null,41,"男子",null,null,null,null,null,""]
[null,42,"男子",null,null,null,null,null,""]
[null,43,"男子",null,null,null,null,null,""]
[null,44,"男子",null,null,null,null,null,""]
[null,45,"男子",null,null,null,null,null,""]
[null,46,"男子",null,null,null,null,null,""]
[null,47,"男子",null,null,null,null,null,""]
[null,48,"男子",null,null,null,null,null,""]
[null,49,"男子",null,null,null,null,null,""]
[null,50,"男子",null,null,null,null,null,""]

{"sheet":"女子シングルス","index":6,"n_rows":60,"n_cols":11,"rows_kept":60,"cut":false,"hidden":false,"merged":[[0,0,0,10],[1,0,1,10],[3,8,3,10],[4,8,4,10],[5,8,5,10],[6,9,6,10],[8,0,9,0]]}
["第１９回 関東ラージボール卓球大会"]
["女子シングルス申込書  （凡例   W：女子）"]
[]
[null,null,null,null,null,null,null,"申込団体名"]
[null,null,null,null,null,null,null,"申込責任者"]
[null,null,null,null,null,null,null,"連絡先電話番号"]
[null,null,null,null,null,null,"年齢は、自動計算されます",null,null,"年齢基準：２０２７年４月１日"]
[null,"No.","性別","選手名","ふりがな","日本卓球協会\n登録チーム名","ふりがな","生年月日","年齢","種目","備考"]
["例",1,"女子","横浜 花子","よこはまはなこ","小田原クラブ","おだわらくらぶ","1945-08-06",{"$f":"IF(H9<>\"\",DATEDIF(H9,\"2027/4/1\",\"Y\"),\"\")","v":81},"８０W"]
[null,2,"女子","相模 春子","さがみはるこ","小田原クラブ","おだわらくらぶ","1947-11-09",{"$f":"IF(H10<>\"\",DATEDIF(H10,\"2027/4/1\",\"Y\"),\"\")","v":79},"７５W"]
[null,1,"女子",null,null,null,null,null,{"$f":"IF(H11<>\"\",DATEDIF(H11,\"2027/4/1\",\"Y\"),\"\")","v":""}]
[null,2,"女子"]
[null,3,"女子",null,null,null,null,null,{"$f":"IF(H13<>\"\",DATEDIF(H13,\"2027/4/1\",\"Y\"),\"\")","v":""}]
[null,4,"女子",null,null,null,null,null,""]
[null,5,"女子",null,null,null,null,null,""]
[null,6,"女子",null,null,null,null,null,""]
[null,7,"女子",null,null,null,null,null,""]
[null,8,"女子",null,null,null,null,null,""]
[null,9,"女子",null,null,null,null,null,""]
[null,10,"女子",null,null,null,null,null,""]
[null,11,"女子",null,null,null,null,null,""]
[null,12,"女子",null,null,null,null,null,""]
[null,13,"女子",null,null,null,null,null,""]
[null,14,"女子",null,null,null,null,null,""]
[null,15,"女子",null,null,null,null,null,""]
[null,16,"女子",null,null,null,null,null,""]
[null,17,"女子",null,null,null,null,null,""]
[null,18,"女子",null,null,null,null,null,""]
[null,19,"女子",null,null,null,null,null,""]
[null,20,"女子",null,null,null,null,null,""]
[null,21,"女子",null,null,null,null,null,""]
[null,22,"女子",null,null,null,null,null,""]
[null,23,"女子",null,null,null,null,null,""]
[null,24,"女子",null,null,null,null,null,""]
[null,25,"女子",null,null,null,null,null,""]
[null,26,"女子",null,null,null,null,null,""]
[null,27,"女子",null,null,null,null,null,""]
[null,28,"女子",null,null,null,null,null,""]
[null,29,"女子",null,null,null,null,null,""]
[null,30,"女子",null,null,null,null,null,""]
[null,31,"女子",null,null,null,null,null,""]
[null,32,"女子",null,null,null,null,null,""]
[null,33,"女子",null,null,null,null,null,""]
[null,34,"女子",null,null,null,null,null,""]
[null,35,"女子",null,null,null,null,null,""]
[null,36,"女子",null,null,null,null,null,""]
[null,37,"女子",null,null,null,null,null,""]
[null,38,"女子",null,null,null,null,null,""]
[null,39,"女子",null,null,null,null,null,""]
[null,40,"女子",null,null,null,null,null,""]
[null,41,"女子",null,null,null,null,null,""]
[null,42,"女子",null,null,null,null,null,""]
[null,43,"女子",null,null,null,null,null,""]
[null,44,"女子",null,null,null,null,null,""]
[null,45,"女子",null,null,null,null,null,""]
[null,46,"女子",null,null,null,null,null,""]
[null,47,"女子",null,null,null,null,null,""]
[null,48,"女子",null,null,null,null,null,""]
[null,49,"女子",null,null,null,null,null,""]
[null,50,"女子",null,null,null,null,null,""]

{"sheet":"Sheet1","index":7,"n_rows":0,"n_cols":0,"rows_kept":0,"cut":false,"hidden":false,"merged":[]}